[Event "Titled Tuesday Blitz November 15 Late 2022"]
[White "Jones, Gawain C B"]
[Black "Svane, Frederik"]
[WhiteFideId "409561"]
[BlackFideId "12923044"]
[WhiteElo "2657"]
[BlackElo "2466"]
[Result "1/2-1/2"]
[Round "08"]
[TimeControl "180+1"]
[Date "2022.11.15"]
[WhiteClock "0:00:04"]
[BlackClock "0:00:15"]

1. Nf3 {[%clk 0:03:00]}  d5 {[%clk 0:02:57]} 2. g3 {[%clk 0:03:00]}  Nd7 {[%clk 0:02:56]} 3. Bg2 {[%clk 0:03:00]}  e5 {[%clk 0:02:56]} 4. O-O {[%clk 0:03:01]}  Ngf6 {[%clk 0:02:57]} 5. d3 {[%clk 0:02:59]}  c6 {[%clk 0:02:57]} 6. c4 {[%clk 0:02:56]}  dxc4 {[%clk 0:02:58]} 7. dxc4 {[%clk 0:02:56]}  Be7 {[%clk 0:02:59]} 8. Nc3 {[%clk 0:02:56]}  O-O {[%clk 0:02:59]} 9. Qc2 {[%clk 0:02:56]}  Qc7 {[%clk 0:02:59]} 10. b3 {[%clk 0:02:45]}  Re8 {[%clk 0:02:42]} 11. Rd1 {[%clk 0:02:41]}  Bf8 {[%clk 0:02:41]} 12. Bb2 {[%clk 0:02:30]}  a5 {[%clk 0:02:39]} 13. Nd2 {[%clk 0:02:12]}  Nc5 {[%clk 0:02:36]} 14. Nce4 {[%clk 0:02:09]}  Nfxe4 {[%clk 0:02:35]} 15. Nxe4 {[%clk 0:02:10]}  Nxe4 {[%clk 0:02:10]} 16. Bxe4 {[%clk 0:02:09]}  g6 {[%clk 0:02:10]} 17. c5 {[%clk 0:02:04]}  Bg4 {[%clk 0:02:01]} 18. Qc4 {[%clk 0:01:58]}  Rad8 {[%clk 0:01:54]} 19. Kg2 {[%clk 0:01:39]}  Be6 {[%clk 0:01:43]} 20. Qc3 {[%clk 0:01:37]}  Bg7 {[%clk 0:01:42]} 21. Bd3 {[%clk 0:01:22]}  Rd4 {[%clk 0:01:07]} 22. e3 {[%clk 0:01:10]}  Rd5 {[%clk 0:01:08]} 23. e4 {[%clk 0:01:05]}  Rd4 {[%clk 0:01:03]} 24. Qc2 {[%clk 0:01:02]}  Rd7 {[%clk 0:00:57]} 25. Bc4 {[%clk 0:01:02]}  Bxc4 {[%clk 0:00:57]} 26. Rxd7 {[%clk 0:00:51]}  Qxd7 {[%clk 0:00:57]} 27. Qxc4 {[%clk 0:00:46]}  Rd8 {[%clk 0:00:53]} 28. Bc3 {[%clk 0:00:45]}  Qc7 {[%clk 0:00:45]} 29. Qa4 {[%clk 0:00:43]}  Ra8 {[%clk 0:00:45]} 30. Rd1 {[%clk 0:00:39]}  Bf8 {[%clk 0:00:45]} 31. Qc4 {[%clk 0:00:30]}  Qe7 {[%clk 0:00:30]} 32. Rd6 {[%clk 0:00:29]}  Qe8 {[%clk 0:00:29]} 33. Rd2 {[%clk 0:00:27]}  Qe7 {[%clk 0:00:27]} 34. Rd6 {[%clk 0:00:19]}  Qe8 {[%clk 0:00:28]} 35. Rd2 {[%clk 0:00:19]}  Qe7 {[%clk 0:00:27]} 36. b4 {[%clk 0:00:14]}  axb4 {[%clk 0:00:26]} 37. Bxb4 {[%clk 0:00:15]}  Rd8 {[%clk 0:00:26]} 38. Rd6 {[%clk 0:00:13]}  Qc7 {[%clk 0:00:11]} 39. Rxd8 {[%clk 0:00:07]}  Qxd8 {[%clk 0:00:12]} 40. Qc3 {[%clk 0:00:05]}  f6 {[%clk 0:00:11]} 41. Qb3+ {[%clk 0:00:03]}  Kg7 {[%clk 0:00:11]} 42. Ba3 {[%clk 0:00:03]}  Qd7 {[%clk 0:00:11]} 43. h4 {[%clk 0:00:03]}  h5 {[%clk 0:00:11]} 44. Kf1 {[%clk 0:00:03]}  Qf7 {[%clk 0:00:11]} 45. Ke2 {[%clk 0:00:03]}  Qxb3 {[%clk 0:00:11]} 46. axb3 {[%clk 0:00:04]}  Kf7 {[%clk 0:00:11]} 47. Kd3 {[%clk 0:00:04]}  Ke6 {[%clk 0:00:12]} 48. Kc4 {[%clk 0:00:05]}  Be7 {[%clk 0:00:12]} 49. Bb4 {[%clk 0:00:04]}  Bd8 {[%clk 0:00:12]} 50. Bc3 {[%clk 0:00:04]}  Bc7 {[%clk 0:00:13]} 51. b4 {[%clk 0:00:03]}  b5+ {[%clk 0:00:12]} 52. cxb6 {[%clk 0:00:02]}  Bxb6 {[%clk 0:00:13]} 53. Be1 {[%clk 0:00:03]}  Kd6 {[%clk 0:00:12]} 54. b5 {[%clk 0:00:03]}  cxb5+ {[%clk 0:00:13]} 55. Kxb5 {[%clk 0:00:04]}  Bd4 {[%clk 0:00:13]} 56. Bb4+ {[%clk 0:00:02]}  Ke6 {[%clk 0:00:14]} 57. Be1 {[%clk 0:00:03]}  f5 {[%clk 0:00:14]} 58. f3 {[%clk 0:00:02]}  fxe4 {[%clk 0:00:14]} 59. fxe4 {[%clk 0:00:03]}  Be3 {[%clk 0:00:15]} 60. Kc6 {[%clk 0:00:03]}  Bd4 {[%clk 0:00:15]} 61. Kc7 {[%clk 0:00:03]}  Ke7 {[%clk 0:00:15]} 62. Kc6 {[%clk 0:00:04]}  Ke6 {[%clk 0:00:15]} 63. Kc7 {[%clk 0:00:04]}  Ke7 {[%clk 0:00:16]} 64. Kc6 {[%clk 0:00:04]}  Ke6 {[%clk 0:00:15]} 1/2-1/2


[Site "https://www.chess.com"]

[Event "Titled Tuesday Blitz November 15 Late 2022"]
[White "Kaplan, Avi Harrison"]
[Black "Espinosa, Pedro"]
[WhiteFideId "30934559"]
[BlackFideId "30921066"]
[WhiteElo "1983"]
[BlackElo "2016"]
[Result "1-0"]
[Round "08"]
[TimeControl "180+1"]
[Date "2022.11.16"]
[WhiteClock "0:00:22"]
[BlackClock "0:00:59"]

1. d4 {[%clk 0:03:00]}  d5 {[%clk 0:02:59]} 2. c4 {[%clk 0:02:59]}  c6 {[%clk 0:02:57]} 3. Nc3 {[%clk 0:02:59]}  Nf6 {[%clk 0:02:55]} 4. cxd5 {[%clk 0:02:59]}  cxd5 {[%clk 0:02:54]} 5. Bf4 {[%clk 0:02:59]}  Nc6 {[%clk 0:02:54]} 6. e3 {[%clk 0:02:59]}  a6 {[%clk 0:02:54]} 7. Be2 {[%clk 0:03:00]}  Bf5 {[%clk 0:02:54]} 8. Nf3 {[%clk 0:02:59]}  e6 {[%clk 0:02:54]} 9. Qb3 {[%clk 0:02:59]}  Na5 {[%clk 0:02:32]} 10. Qa4+ {[%clk 0:02:55]}  Nc6 {[%clk 0:02:32]} 11. Qb3 {[%clk 0:02:55]}  Na5 {[%clk 0:02:31]} 12. Qa4+ {[%clk 0:02:44]}  Nc6 {[%clk 0:02:31]} 13. Ne5 {[%clk 0:02:28]}  Qb6 {[%clk 0:02:25]} 14. Nxc6 {[%clk 0:02:17]}  bxc6 {[%clk 0:02:22]} 15. O-O {[%clk 0:01:58]}  Be7 {[%clk 0:02:21]} 16. a3 {[%clk 0:01:42]}  O-O {[%clk 0:02:17]} 17. b4 {[%clk 0:01:43]}  a5 {[%clk 0:02:10]} 18. b5 {[%clk 0:01:33]}  c5 {[%clk 0:02:01]} 19. dxc5 {[%clk 0:01:28]}  Bxc5 {[%clk 0:01:56]} 20. Rac1 {[%clk 0:01:24]}  Rfc8 {[%clk 0:01:50]} 21. Nb1 {[%clk 0:00:55]}  Ne4 {[%clk 0:01:38]} 22. Bd3 {[%clk 0:00:44]}  Bd6 {[%clk 0:01:17]} 23. Bxd6 {[%clk 0:00:39]}  Nxd6 {[%clk 0:01:08]} 24. Bxf5 {[%clk 0:00:37]}  Nxf5 {[%clk 0:01:05]} 25. Qb3 {[%clk 0:00:25]}  Nd6 {[%clk 0:00:53]} 26. a4 {[%clk 0:00:25]}  Nc4 {[%clk 0:00:53]} 27. Rfd1 {[%clk 0:00:21]}  Qc5 {[%clk 0:00:33]} 28. h3 {[%clk 0:00:11]}  h6 {[%clk 0:00:33]} 29. e4 {[%clk 0:00:11]}  Qb4 {[%clk 0:00:12]} 30. Qxb4 {[%clk 0:00:10]}  axb4 {[%clk 0:00:13]} 31. exd5 {[%clk 0:00:11]}  exd5 {[%clk 0:00:14]} 32. Rxd5 {[%clk 0:00:11]}  Rxa4 {[%clk 0:00:12]} 33. b6 {[%clk 0:00:07]}  Nxb6 {[%clk 0:00:11]} 34. Rxc8+ {[%clk 0:00:07]}  Nxc8 {[%clk 0:00:12]} 35. Rd8+ {[%clk 0:00:07]}  Kh7 {[%clk 0:00:12]} 36. Rxc8 {[%clk 0:00:08]}  Ra1 {[%clk 0:00:12]} 37. Rc1 {[%clk 0:00:09]}  b3 {[%clk 0:00:13]} 38. Kf1 {[%clk 0:00:08]}  b2 {[%clk 0:00:13]} 39. Re1 {[%clk 0:00:08]}  Kg6 {[%clk 0:00:13]} 40. Ke2 {[%clk 0:00:08]}  Ra5 {[%clk 0:00:12]} 41. Nd2 {[%clk 0:00:07]}  Re5+ {[%clk 0:00:12]} 42. Kf1 {[%clk 0:00:07]}  Rd5 {[%clk 0:00:11]} 43. Ke2 {[%clk 0:00:02]}  Re5+ {[%clk 0:00:12]} 44. Kd1 {[%clk 0:00:03]}  Rc5 {[%clk 0:00:11]} 45. Ke2 {[%clk 0:00:03]}  Rc1 {[%clk 0:00:10]} 46. Nb1 {[%clk 0:00:02]}  Rc2+ {[%clk 0:00:10]} 47. Kf3 {[%clk 0:00:02]}  f5 {[%clk 0:00:09]} 48. Re2 {[%clk 0:00:02]}  Rxe2 {[%clk 0:00:06]} 49. Kxe2 {[%clk 0:00:02]}  Kg5 {[%clk 0:00:06]} 50. Kd2 {[%clk 0:00:03]}  f4 {[%clk 0:00:07]} 51. Kc2 {[%clk 0:00:04]}  f3 {[%clk 0:00:07]} 52. g3 {[%clk 0:00:04]}  h5 {[%clk 0:00:06]} 53. Kxb2 {[%clk 0:00:05]}  h4 {[%clk 0:00:06]} 54. Nd2 {[%clk 0:00:05]}  hxg3 {[%clk 0:00:06]} 55. fxg3 {[%clk 0:00:06]}  f2 {[%clk 0:00:06]} 56. Kc3 {[%clk 0:00:06]}  Kf5 {[%clk 0:00:05]} 57. Kd3 {[%clk 0:00:07]}  g5 {[%clk 0:00:06]} 58. Ke3 {[%clk 0:00:07]}  g4 {[%clk 0:00:07]} 59. h4 {[%clk 0:00:08]}  f1=Q {[%clk 0:00:06]} 60. Nxf1 {[%clk 0:00:08]}  Kg6 {[%clk 0:00:07]} 61. Kf4 {[%clk 0:00:08]}  Kh5 {[%clk 0:00:07]} 62. Kf5 {[%clk 0:00:08]}  Kh6 {[%clk 0:00:08]} 63. Kxg4 {[%clk 0:00:09]}  Kg6 {[%clk 0:00:08]} 64. h5+ {[%clk 0:00:10]}  Kh7 {[%clk 0:00:09]} 65. Kh4 {[%clk 0:00:11]}  Kg7 {[%clk 0:00:10]} 66. g4 {[%clk 0:00:12]}  Kh8 {[%clk 0:00:11]} 67. g5 {[%clk 0:00:12]}  Kg8 {[%clk 0:00:12]} 68. Kg4 {[%clk 0:00:13]}  Kh8 {[%clk 0:00:13]} 69. Kf5 {[%clk 0:00:14]}  Kg8 {[%clk 0:00:13]} 70. Ng3 {[%clk 0:00:14]}  Kg7 {[%clk 0:00:14]} 71. Ne2 {[%clk 0:00:15]}  Kh7 {[%clk 0:00:15]} 72. Nf4 {[%clk 0:00:16]}  Kh8 {[%clk 0:00:16]} 73. Ng2 {[%clk 0:00:17]}  Kg8 {[%clk 0:00:17]} 74. Ne3 {[%clk 0:00:18]}  Kg7 {[%clk 0:00:18]} 75. Nd1 {[%clk 0:00:19]}  Kg8 {[%clk 0:00:19]} 76. Nc3 {[%clk 0:00:20]}  Kh8 {[%clk 0:00:19]} 77. Nb1 {[%clk 0:00:21]}  Kh7 {[%clk 0:00:20]} 78. Nd2 {[%clk 0:00:21]}  Kg7 {[%clk 0:00:21]} 79. Nb3 {[%clk 0:00:22]}  Kg8 {[%clk 0:00:22]} 80. Nc1 {[%clk 0:00:23]}  Kh8 {[%clk 0:00:23]} 81. Na2 {[%clk 0:00:24]}  Kh7 {[%clk 0:00:24]} 82. Nb4 {[%clk 0:00:25]}  Kg7 {[%clk 0:00:25]} 83. Nd3 {[%clk 0:00:26]}  Kg8 {[%clk 0:00:26]} 84. Nc5 {[%clk 0:00:27]}  Kh8 {[%clk 0:00:27]} 85. Ne4 {[%clk 0:00:28]}  Kh7 {[%clk 0:00:27]} 86. h6 {[%clk 0:00:29]}  Kh8 {[%clk 0:00:28]} 87. Ng3 {[%clk 0:00:30]}  Kg8 {[%clk 0:00:29]} 88. Ne2 {[%clk 0:00:30]}  Kh8 {[%clk 0:00:29]} 89. Ng1 {[%clk 0:00:31]}  Kg8 {[%clk 0:00:30]} 90. Nf3 {[%clk 0:00:32]}  Kh8 {[%clk 0:00:31]} 91. Ne1 {[%clk 0:00:33]}  Kh7 {[%clk 0:00:32]} 92. Nd3 {[%clk 0:00:34]}  Kh8 {[%clk 0:00:33]} 93. Nc1 {[%clk 0:00:35]}  Kg8 {[%clk 0:00:34]} 94. Nb3 {[%clk 0:00:36]}  Kh7 {[%clk 0:00:35]} 95. Na1 {[%clk 0:00:37]}  Kh8 {[%clk 0:00:36]} 96. Nc2 {[%clk 0:00:38]}  Kg8 {[%clk 0:00:37]} 97. Nb4 {[%clk 0:00:39]}  Kh7 {[%clk 0:00:38]} 98. Na2 {[%clk 0:00:39]}  Kh8 {[%clk 0:00:38]} 99. Nc3 {[%clk 0:00:40]}  Kg8 {[%clk 0:00:39]} 100. g6 {[%clk 0:00:36]}  Kh8 {[%clk 0:00:39]} 101. Kf6 {[%clk 0:00:35]}  Kg8 {[%clk 0:00:40]} 102. Ne4 {[%clk 0:00:32]}  Kh8 {[%clk 0:00:41]} 103. Ng3 {[%clk 0:00:33]}  Kg8 {[%clk 0:00:42]} 104. Ne2 {[%clk 0:00:34]}  Kh8 {[%clk 0:00:43]} 105. Nf4 {[%clk 0:00:35]}  Kg8 {[%clk 0:00:44]} 106. Nh3 {[%clk 0:00:34]}  Kh8 {[%clk 0:00:45]} 107. Ng5 {[%clk 0:00:34]}  Kg8 {[%clk 0:00:46]} 108. Nf7 {[%clk 0:00:35]}  Kf8 {[%clk 0:00:46]} 109. h7 {[%clk 0:00:34]}  Ke8 {[%clk 0:00:46]} 110. h8=Q+ {[%clk 0:00:34]}  Kd7 {[%clk 0:00:47]} 111. Qd8+ {[%clk 0:00:34]}  Kc6 {[%clk 0:00:48]} 112. g7 {[%clk 0:00:34]}  Kc5 {[%clk 0:00:49]} 113. g8=B {[%clk 0:00:33]}  Kc4 {[%clk 0:00:50]} 114. Ke5 {[%clk 0:00:31]}  Kb5 {[%clk 0:00:50]} 115. Kd4 {[%clk 0:00:31]}  Kc6 {[%clk 0:00:51]} 116. Qd5+ {[%clk 0:00:30]}  Kc7 {[%clk 0:00:52]} 117. Qe6 {[%clk 0:00:30]}  Kb7 {[%clk 0:00:52]} 118. Qd6 {[%clk 0:00:30]}  Kc8 {[%clk 0:00:53]} 119. Qe7 {[%clk 0:00:30]}  Kb8 {[%clk 0:00:53]} 120. Qd7 {[%clk 0:00:30]}  Ka8 {[%clk 0:00:54]} 121. Kc5 {[%clk 0:00:31]}  Kb8 {[%clk 0:00:55]} 122. Kb6 {[%clk 0:00:32]}  Ka8 {[%clk 0:00:55]} 123. Nd6 {[%clk 0:00:28]}  Kb8 {[%clk 0:00:55]} 124. Qc7+ {[%clk 0:00:27]}  Ka8 {[%clk 0:00:55]} 125. Qb8+ {[%clk 0:00:27]}  Kxb8 {[%clk 0:00:55]} 126. Be6 {[%clk 0:00:27]}  Ka8 {[%clk 0:00:55]} 127. Nb5 {[%clk 0:00:25]}  Kb8 {[%clk 0:00:56]} 128. Bf5 {[%clk 0:00:20]}  Ka8 {[%clk 0:00:56]} 129. Bc8 {[%clk 0:00:21]}  Kb8 {[%clk 0:00:57]} 130. Ba6 {[%clk 0:00:21]}  Ka8 {[%clk 0:00:58]} 131. Nd4 {[%clk 0:00:21]}  Kb8 {[%clk 0:00:58]} 132. Nc6+ {[%clk 0:00:21]}  Ka8 {[%clk 0:00:59]} 133. Bb7# {[%clk 0:00:22]} 1-0


[Site "https://www.chess.com"]

[Event "Titled Tuesday Blitz November 15 Late 2022"]
[White "Kaufman, Raymond"]
[Black "Do Nascimento,Christian Almeida"]
[WhiteFideId "2015056"]
[BlackFideId "2143801"]
[WhiteElo "2321"]
[BlackElo "2079"]
[Result "1-0"]
[Round "08"]
[TimeControl "180+1"]
[Date "2022.11.16"]
[WhiteClock "0:01:42"]
[BlackClock "0:00:20"]

1. e4 {[%clk 0:02:59]}  c5 {[%clk 0:02:56]} 2. Nf3 {[%clk 0:02:59]}  d6 {[%clk 0:02:56]} 3. d4 {[%clk 0:02:59]}  cxd4 {[%clk 0:02:57]} 4. Nxd4 {[%clk 0:03:00]}  Nf6 {[%clk 0:02:57]} 5. Nc3 {[%clk 0:03:00]}  a6 {[%clk 0:02:56]} 6. Bg5 {[%clk 0:03:00]}  e6 {[%clk 0:02:55]} 7. f4 {[%clk 0:03:00]}  Be7 {[%clk 0:02:54]} 8. Qf3 {[%clk 0:03:00]}  Qc7 {[%clk 0:02:51]} 9. O-O-O {[%clk 0:03:00]}  b5 {[%clk 0:02:50]} 10. Bxf6 {[%clk 0:02:47]}  gxf6 {[%clk 0:02:51]} 11. a3 {[%clk 0:02:43]}  Nd7 {[%clk 0:02:46]} 12. f5 {[%clk 0:02:39]}  Ne5 {[%clk 0:02:42]} 13. Qh3 {[%clk 0:02:39]}  O-O {[%clk 0:01:37]} 14. fxe6 {[%clk 0:02:30]}  fxe6 {[%clk 0:01:37]} 15. Nxe6 {[%clk 0:02:30]}  Bxe6 {[%clk 0:01:31]} 16. Qxe6+ {[%clk 0:02:30]}  Kh8 {[%clk 0:01:32]} 17. Nd5 {[%clk 0:02:30]}  Qc5 {[%clk 0:01:19]} 18. Qxe7 {[%clk 0:02:22]}  Rac8 {[%clk 0:01:18]} 19. c3 {[%clk 0:02:18]}  a5 {[%clk 0:01:04]} 20. Nxf6 {[%clk 0:02:08]}  Rf7 {[%clk 0:01:04]} 21. Qxd6 {[%clk 0:02:00]}  Qe3+ {[%clk 0:00:58]} 22. Kb1 {[%clk 0:02:00]}  Ng6 {[%clk 0:00:34]} 23. Bxb5 {[%clk 0:01:55]}  Rcf8 {[%clk 0:00:21]} 24. Rhf1 {[%clk 0:01:48]}  Nf4 {[%clk 0:00:20]} 25. Qxf4 {[%clk 0:01:42]} 1-0


[Site "https://www.chess.com"]

[Event "Titled Tuesday Blitz November 15 Late 2022"]
[White "Khandelwal, Ankush"]
[Black "Allahverdiyeva, Ayan"]
[WhiteFideId "413470"]
[BlackFideId "13412590"]
[WhiteElo "2271"]
[BlackElo "2021"]
[Result "1-0"]
[Round "08"]
[TimeControl "180+1"]
[Date "2022.11.16"]
[WhiteClock "0:00:09"]
[BlackClock "0:00:05"]

1. e4 {[%clk 0:03:00]}  c5 {[%clk 0:02:59]} 2. Nf3 {[%clk 0:03:00]}  d6 {[%clk 0:02:59]} 3. d4 {[%clk 0:02:59]}  cxd4 {[%clk 0:03:00]} 4. Nxd4 {[%clk 0:03:00]}  Nf6 {[%clk 0:02:59]} 5. Nc3 {[%clk 0:03:00]}  a6 {[%clk 0:03:00]} 6. f3 {[%clk 0:02:59]}  e5 {[%clk 0:02:59]} 7. Nb3 {[%clk 0:03:00]}  Be6 {[%clk 0:02:57]} 8. Be3 {[%clk 0:03:00]}  Be7 {[%clk 0:02:56]} 9. Qd2 {[%clk 0:03:00]}  h5 {[%clk 0:02:55]} 10. O-O-O {[%clk 0:02:59]}  Nbd7 {[%clk 0:02:52]} 11. Kb1 {[%clk 0:02:58]}  Rc8 {[%clk 0:02:01]} 12. Nd5 {[%clk 0:02:24]}  Nxd5 {[%clk 0:01:57]} 13. exd5 {[%clk 0:02:24]}  Bf5 {[%clk 0:01:57]} 14. Bd3 {[%clk 0:02:25]}  Bxd3 {[%clk 0:01:35]} 15. Qxd3 {[%clk 0:02:26]}  b5 {[%clk 0:01:26]} 16. f4 {[%clk 0:02:00]}  Bf6 {[%clk 0:01:21]} 17. h3 {[%clk 0:01:55]}  exf4 {[%clk 0:01:15]} 18. Bxf4 {[%clk 0:01:56]}  Ne5 {[%clk 0:01:15]} 19. Rde1 {[%clk 0:01:32]}  O-O {[%clk 0:01:11]} 20. Qe2 {[%clk 0:01:32]}  Rc4 {[%clk 0:01:06]} 21. Bxe5 {[%clk 0:01:04]}  Bxe5 {[%clk 0:01:04]} 22. Qxh5 {[%clk 0:01:04]}  Rh4 {[%clk 0:01:02]} 23. Qe2 {[%clk 0:01:01]}  a5 {[%clk 0:00:56]} 24. Qxb5 {[%clk 0:00:59]}  a4 {[%clk 0:00:56]} 25. Nc1 {[%clk 0:00:59]}  Qa8 {[%clk 0:00:54]} 26. Nd3 {[%clk 0:00:58]}  Rb8 {[%clk 0:00:51]} 27. Qc6 {[%clk 0:00:58]}  Qa7 {[%clk 0:00:17]} 28. Nxe5 {[%clk 0:00:31]}  dxe5 {[%clk 0:00:12]} 29. Rxe5 {[%clk 0:00:27]}  Rhb4 {[%clk 0:00:12]} 30. Re8+ {[%clk 0:00:26]}  Rxe8 {[%clk 0:00:10]} 31. Qxe8+ {[%clk 0:00:27]}  Kh7 {[%clk 0:00:10]} 32. Re1 {[%clk 0:00:19]}  Qd4 {[%clk 0:00:09]} 33. b3 {[%clk 0:00:08]}  a3 {[%clk 0:00:09]} 34. Qe5 {[%clk 0:00:08]}  Qxe5 {[%clk 0:00:08]} 35. Rxe5 {[%clk 0:00:09]}  Rd4 {[%clk 0:00:05]} 36. c4 {[%clk 0:00:09]} 1-0


[Site "https://www.chess.com"]

[Event "Titled Tuesday Blitz November 15 Late 2022"]
[White "Kopylov, Alexander A."]
[Black "Annaberdiyev, Babageldi"]
[WhiteFideId "4164857"]
[BlackFideId "14000385"]
[WhiteElo "2747"]
[BlackElo "2561"]
[Result "0-1"]
[Round "08"]
[TimeControl "180+1"]
[Date "2022.11.16"]
[WhiteClock "0:00:06"]
[BlackClock "0:00:04"]

1. e4 {[%clk 0:03:00]}  e6 {[%clk 0:02:59]} 2. Nf3 {[%clk 0:03:00]}  d5 {[%clk 0:02:59]} 3. exd5 {[%clk 0:03:01]}  exd5 {[%clk 0:03:00]} 4. d4 {[%clk 0:03:02]}  Bd6 {[%clk 0:02:59]} 5. Bd3 {[%clk 0:03:02]}  Nc6 {[%clk 0:03:00]} 6. O-O {[%clk 0:03:02]}  Bg4 {[%clk 0:03:00]} 7. c3 {[%clk 0:03:02]}  Nge7 {[%clk 0:02:58]} 8. Nbd2 {[%clk 0:03:02]}  Qd7 {[%clk 0:02:57]} 9. b4 {[%clk 0:03:02]}  f6 {[%clk 0:02:55]} 10. Nb3 {[%clk 0:03:01]}  Bf5 {[%clk 0:02:53]} 11. Nc5 {[%clk 0:03:00]}  Bxc5 {[%clk 0:02:52]} 12. bxc5 {[%clk 0:03:01]}  Bxd3 {[%clk 0:02:52]} 13. Qxd3 {[%clk 0:03:01]}  O-O {[%clk 0:02:52]} 14. Rb1 {[%clk 0:03:00]}  b6 {[%clk 0:02:52]} 15. Ba3 {[%clk 0:03:01]}  Rfe8 {[%clk 0:02:51]} 16. Qa6 {[%clk 0:02:55]}  Na5 {[%clk 0:02:45]} 17. Bb4 {[%clk 0:02:52]}  Nc4 {[%clk 0:02:44]} 18. a4 {[%clk 0:02:44]}  Ng6 {[%clk 0:02:33]} 19. Rfe1 {[%clk 0:02:20]}  Nf4 {[%clk 0:02:23]} 20. h3 {[%clk 0:02:09]}  Qf5 {[%clk 0:02:00]} 21. Qb5 {[%clk 0:02:09]}  Rec8 {[%clk 0:01:41]} 22. Qc6 {[%clk 0:02:04]}  Nxh3+ {[%clk 0:01:28]} 23. gxh3 {[%clk 0:02:03]}  Qxf3 {[%clk 0:01:28]} 24. Re7 {[%clk 0:02:00]}  Kh8 {[%clk 0:01:20]} 25. Rbe1 {[%clk 0:01:59]}  Rg8 {[%clk 0:01:20]} 26. Qxc7 {[%clk 0:01:48]}  Qxh3 {[%clk 0:01:16]} 27. c6 {[%clk 0:01:44]}  Nd2 {[%clk 0:01:11]} 28. R7e3 {[%clk 0:01:33]}  Nf3+ {[%clk 0:01:09]} 29. Rxf3 {[%clk 0:01:33]}  Qxf3 {[%clk 0:01:09]} 30. Re3 {[%clk 0:01:14]}  Qd1+ {[%clk 0:01:08]} 31. Kh2 {[%clk 0:01:12]}  Qxa4 {[%clk 0:01:08]} 32. Rh3 {[%clk 0:00:48]}  Rac8 {[%clk 0:00:56]} 33. Qf7 {[%clk 0:00:48]}  Qc2 {[%clk 0:00:45]} 34. c7 {[%clk 0:00:47]}  Qf5 {[%clk 0:00:43]} 35. Bd6 {[%clk 0:00:29]}  Qxf2+ {[%clk 0:00:41]} 36. Kh1 {[%clk 0:00:30]}  Qf1+ {[%clk 0:00:41]} 37. Kh2 {[%clk 0:00:30]}  Qf2+ {[%clk 0:00:39]} 38. Kh1 {[%clk 0:00:30]}  Qf5 {[%clk 0:00:40]} 39. Kh2 {[%clk 0:00:27]}  a5 {[%clk 0:00:39]} 40. Rh5 {[%clk 0:00:23]}  Qc2+ {[%clk 0:00:36]} 41. Kg1 {[%clk 0:00:21]}  a4 {[%clk 0:00:36]} 42. Qxd5 {[%clk 0:00:14]}  a3 {[%clk 0:00:32]} 43. Bxa3 {[%clk 0:00:12]}  Rxc7 {[%clk 0:00:32]} 44. Bb4 {[%clk 0:00:13]}  Qg6+ {[%clk 0:00:24]} 45. Kf2 {[%clk 0:00:12]}  Ra7 {[%clk 0:00:24]} 46. Rh3 {[%clk 0:00:10]}  Qc2+ {[%clk 0:00:22]} 47. Kg3 {[%clk 0:00:09]}  Ra2 {[%clk 0:00:23]} 48. Qf3 {[%clk 0:00:07]}  Qg6+ {[%clk 0:00:19]} 49. Kf4 {[%clk 0:00:05]}  Qg5+ {[%clk 0:00:15]} 50. Ke4 {[%clk 0:00:05]}  Re8+ {[%clk 0:00:15]} 51. Kd3 {[%clk 0:00:06]}  b5 {[%clk 0:00:15]} 52. c4 {[%clk 0:00:02]}  bxc4+ {[%clk 0:00:12]} 53. Kxc4 {[%clk 0:00:03]}  Rc8+ {[%clk 0:00:12]} 54. Bc5 {[%clk 0:00:03]}  Ra4+ {[%clk 0:00:11]} 55. Kb3 {[%clk 0:00:03]}  Ra5 {[%clk 0:00:10]} 56. Qd3 {[%clk 0:00:03]}  h6 {[%clk 0:00:09]} 57. Kb4 {[%clk 0:00:03]}  Raxc5 {[%clk 0:00:08]} 58. Rg3 {[%clk 0:00:04]}  Qd5 {[%clk 0:00:05]} 59. dxc5 {[%clk 0:00:03]}  Qxc5+ {[%clk 0:00:06]} 60. Kb3 {[%clk 0:00:03]}  Rb8+ {[%clk 0:00:06]} 61. Ka2 {[%clk 0:00:03]}  Ra8+ {[%clk 0:00:05]} 62. Kb2 {[%clk 0:00:03]}  Rb8+ {[%clk 0:00:05]} 63. Ka2 {[%clk 0:00:03]}  Qa5+ {[%clk 0:00:04]} 64. Qa3 {[%clk 0:00:04]}  Qxa3+ {[%clk 0:00:04]} 65. Kxa3 {[%clk 0:00:04]}  Rb5 {[%clk 0:00:04]} 66. Ka4 {[%clk 0:00:05]}  Rg5 {[%clk 0:00:05]} 67. Kb4 {[%clk 0:00:06]}  Rxg3 {[%clk 0:00:04]} 0-1


[Site "https://www.chess.com"]